bitfinex/quotes_SOLUSD_20260114
["timestamp","ask_amount","ask_price","bid_price","bid_amount"]
[1768413618216,7.26297956,145.83,145.78,7.58103683]
[1768413618418,7.26297956,145.83,145.79,0.72156888]
[1768413619114,6.85699233,145.84,145.79,0.72156888]
[1768413619324,17.44652242,145.85,145.8,0.72156888]
[1768413619325,9.68926244,145.85,145.8,0.72156888]
[1768413619532,0.099,145.84,145.8,0.72156888]
[1768413620001,2.62609999,145.84,145.79,0.72156888]
[1768413620205,0.30355799,145.83,145.79,0.72156888]
[1768413620405,7.16246361,145.84,145.79,10.10756755]
[1768413620913,9.6895636,145.84,145.79,7.58046756]
[1768413621226,7.16246361,145.84,145.79,10.10756755]
[1768413621613,9.6895636,145.84,145.79,0.72156888]
[1768413623134,2.62609999,145.83,145.79,0.72156888]
[1768413623717,6.85774817,145.83,145.79,0.72156888]
[1768413624235,9.48311871,145.84,145.79,7.58071713]
[1768413624431,6.95601872,145.84,145.79,7.58071713]
[1768413624624,2.52709999,145.87,145.82,0.70392547]
[1768413624931,6.85570201,145.87,145.84,0.70392547]
[1768413625329,6.85570201,145.87,145.82,0.70392547]
[1768413625533,9.382802,145.87,145.83,0.70392547]
[1768413625729,6.85570201,145.87,145.83,0.70392547]
[1768413626138,0.30355799,145.86,145.82,0.70392547]
[1768413626326,2.82863286,145.84,145.79,0.70392547]
[1768413626514,2.82863286,145.84,145.8,0.70392547]
[1768413626515,0.30153287,145.84,145.8,0.70392547]
[1768413627019,2.62609999,145.85,145.8,0.70392547]
[1768413627530,0.099,145.85,145.8,3.23102546]
[1768413627732,0.30355799,145.84,145.79,3.23102546]
[1768413627937,6.85729959,145.83,145.79,0.70392547]
[1768413628312,9.38439958,145.83,145.79,0.70392547]
[1768413628745,9.48544516,145.83,145.78,0.70392547]
[1768413628925,6.95834517,145.83,145.79,0.70392547]
[1768413629256,6.85666731,145.85,145.81,0.70392547]
[1768413630242,6.85666731,145.85,145.81,7.56208164]
[1768413630843,6.95496343,145.86,145.81,7.56208164]
[1768413631022,0.099,145.86,145.82,0.70392547]
[1768413631544,12.5,145.87,145.82,3.23102546]
[1768413631728,7.16083205,145.88,145.83,0.70392547]
[1768413632048,2.83272423,145.88,145.83,0.70392547]
[1768413632527,19.35409346,145.9,145.85,0.70392547]
[1768413632735,21.88119345,145.9,145.85,0.70392547]
[1768413632932,0.30562424,145.89,145.85,0.70392547]
[1768413633537,9.68736031,145.89,145.85,0.70392547]
[1768413633937,0.30562424,145.91,145.86,0.70392547]
[1768413634343,9.68636745,145.91,145.86,0.70392547]
[1768413634930,7.15926746,145.91,145.86,0.70392547]
[1768413635131,9.68636745,145.91,145.86,0.70392547]
[1768413635558,7.15926746,145.91,145.86,0.70392547]
[1768413635738,9.68636745,145.91,145.86,0.70392547]
[1768413636258,2.62609999,145.9,145.84,7.56060518]
[1768413636543,0.099,145.89,145.84,0.70392547]
[1768413636734,2.62609999,145.9,145.85,0.70392547]
[1768413636932,2.62609999,145.9,145.85,6.85606016]
[1768413637447,0.099,145.9,145.85,6.85635927]
[1768413637748,2.62609999,145.9,145.85,6.85635927]
[1768413638221,0.099,145.9,145.85,6.85635927]
[1768413638421,2.62609999,145.9,145.85,6.85635927]
[1768413638638,9.48039378,145.9,145.85,6.85635927]
[1768413638830,9.48039378,145.9,145.86,0.70392547]
[1768413639026,6.95329379,145.9,145.86,0.70392547]
[1768413639242,9.48039378,145.9,145.86,0.70392547]
[1768413639450,2.52709999,145.89,145.86,0.70392547]
[1768413639627,9.48039378,145.9,145.86,0.70392547]
[1768413643634,6.95329379,145.9,145.86,0.70392547]
[1768413645238,9.48039378,145.9,145.86,0.64392547]
[1768413645647,6.95329379,145.9,145.86,0.64392547]
[1768413648850,9.48039378,145.9,145.86,0.64392547]
[1768413649050,0.41915675,145.87,145.82,3.23102546]
[1768413649260,2.52709999,145.87,145.83,0.70392547]
[1768413649552,2.95272423,145.88,145.83,0.70392547]
[1768413649752,2.62609999,145.87,145.83,0.70392547]
[1768413650733,2.52709999,145.86,145.82,0.71248471]
[1768413650933,7.27848285,145.86,145.81,0.71248471]
[1768413651255,2.62933357,145.85,145.81,0.71248471]
[1768413651455,0.10223358,145.85,145.81,0.71248471]
[1768413651638,2.62933357,145.85,145.81,0.71248471]
[1768413652136,2.52709999,145.84,145.81,0.71248471]
[1768413652459,2.62933357,145.85,145.81,0.71248471]
[1768413653160,9.48569928,145.85,145.81,0.71248471]
[1768413654562,9.3834657,145.85,145.81,0.71248471]
[1768413655569,9.4824657,145.85,145.81,0.71248471]
[1768413656241,0.10223358,145.83,145.79,0.71248471]
[1768413656442,6.95965569,145.83,145.79,0.71248471]
[1768413657050,0.10223358,145.83,145.79,7.57165095]
[1768413657364,0.10223358,145.83,145.8,0.71248471]
[1768413658443,9.80973548,145.84,145.8,0.71248471]
[1768413658642,0.42562424,145.84,145.8,7.5711592]
[1768413658843,9.80928055,145.85,145.81,0.71248471]
[1768413660172,6.85655632,145.85,145.81,0.71248471]
[1768413660469,2.52709999,145.84,145.81,0.71248471]
[1768413660649,2.52709999,145.83,145.8,0.71248471]
[1768413661759,9.80928055,145.85,145.81,0.71248471]
[1768413661945,7.28218056,145.85,145.81,0.71248471]
[1768413662150,35.75773123,145.94,145.84,0.71248471]
[1768413662151,6.8544794,145.89,145.84,0.71248471]
[1768413662366,0.42562424,145.91,145.86,0.71248471]
[1768413662569,6.85374618,145.91,145.87,2.52709999]
[1768413662767,0.1584,145.92,145.87,2.52709999]
[1768413663071,3.01272423,145.95,145.89,2.52709999]
[1768413663472,0.099,145.94,145.89,2.52709999]
[1768413663968,6.85260056,145.93,145.88,9.38201012]
[1768413664371,6.85260056,145.93,145.88,6.85491013]
[1768413664552,6.85260056,145.93,145.89,0.71248471]
[1768413665069,9.37941027,145.94,145.9,0.71248471]
[1768413667978,0.10282758,145.93,145.88,0.71248471]
[1768413668154,2.52709999,145.91,145.88,0.71248471]
[1768413668545,2.62609999,145.93,145.88,0.71248471]
[1768413668753,3.00885798,145.92,145.88,0.71248471]
[1768413669053,2.52709999,145.91,145.88,0.71248471]
[1768413669383,2.62992757,145.91,145.87,0.71248471]
[1768413669555,2.52709999,145.91,145.87,0.71248471]
[1768413670976,9.86622332,145.92,145.88,0.71248471]
[1768413672167,9.38059908,145.92,145.88,0.71248471]
[1768413673381,2.52709999,145.91,145.88,0.71248471]
[1768413674455,2.52709999,145.9,145.87,0.71248471]
[1768413674656,2.52709999,145.89,145.86,0.71248471]
[1768413674865,0.47796869,145.9,145.86,0.71248471]
[1768413675154,2.52709999,145.89,145.86,0.71248471]
[1768413675477,9.48825329,145.89,145.85,0.71248471]
[1768413676057,9.3816743,145.89,145.85,0.71248471]
[1768413676573,2.52709999,145.88,145.85,0.71248471]
[1768413677383,2.52709999,145.88,145.82,29.64358595]
[1768413677384,0.48175799,145.88,145.84,0.71248471]
[1768413677586,6.85552482,145.87,145.84,0.71248471]
[1768413678099,2.52709999,145.86,145.83,0.71248471]
[1768413678467,6.9583524,145.87,145.83,0.71248471]
[1768413678665,2.52709999,145.86,145.83,0.71248471]
[1768413680861,2.52709999,145.85,145.82,0.65579985]
[1768413681061,2.63367898,145.85,145.81,0.65579985]
[1768413681271,2.63367898,145.85,145.78,0.65579985]
[1768413681272,0.47425479,145.84,145.78,0.65579985]
[1768413681577,3.95062086,145.81,145.76,0.65579985]
[1768413681758,6.95703101,145.82,145.77,0.65579985]
[1768413682074,3.95062086,145.8,145.77,0.65579985]
[1768413682260,12.5,145.85,145.77,0.65579985]
[1768413682261,0.099,145.84,145.77,0.65579985]
[1768413682454,3.95062086,145.83,145.77,0.65579985]
[1768413682654,6.9558294,145.84,145.78,0.65579985]
[1768413682874,10.90645026,145.84,145.78,0.65579985]
[1768413683058,10.90645026,145.84,145.79,0.65579985]
[1768413683661,3.95062086,145.83,145.79,0.65579985]
[1768413685389,10.80797139,145.83,145.79,0.65579985]
[1768413685568,6.95602662,145.84,145.79,0.65579985]
[1768413686085,3.95062086,145.83,145.79,0.65579985]
[1768413686483,6.95602662,145.84,145.79,0.65579985]
[1768413686691,3.95062086,145.8,145.78,0.65579985]
[1768413686986,3.95062086,145.79,145.76,0.65579985]
[1768413687366,3.95062086,145.78,145.74,0.65579985]
[1768413687585,3.95062086,145.78,145.75,0.65579985]
[1768413688106,10.80982207,145.79,145.75,0.65579985]
[1768413688394,6.85920121,145.79,145.75,0.65579985]
[1768413688578,10.80982207,145.79,145.75,0.65579985]
[1768413688978,6.95787263,145.8,145.75,0.65579985]
[1768413689183,12.5,145.82,145.77,0.65579985]
[1768413689380,16.45062086,145.82,145.77,0.65579985]
[1768413689582,23.30851817,145.82,145.77,7.51585182]
[1768413689787,23.30851817,145.82,145.78,0.65579985]
[1768413689982,34.27892826,145.87,145.77,6.86005197]
[1768413689983,0.48562424,145.87,145.8,0.65579985]
[1768413690187,4.43237885,145.85,145.8,0.65579985]
[1768413690498,0.48175799,145.85,145.8,0.65579985]
[1768413690689,4.43237885,145.85,145.8,0.65579985]
[1768413691699,6.8554192,145.87,145.83,0.65579985]
[1768413692191,6.8554192,145.87,145.83,4.60642071]
[1768413692580,0.48562424,145.93,145.87,0.65579985]
[1768413692787,0.099,145.94,145.88,3.95062086]
[1768413693300,0.099,145.94,145.89,3.95062086]
[1768413693482,6.85260056,145.93,145.89,3.95062086]
[1768413693795,7.39375855,145.93,145.87,6.85527023]
[1768413693977,11.34437941,145.93,145.87,6.85527023]
[1768413694177,7.39375855,145.93,145.87,6.85527023]
[1768413694395,11.34437941,145.93,145.87,6.85527023]
[1768413694701,11.34437941,145.93,145.88,0.65579985]
[1768413694905,7.39375855,145.93,145.88,0.65579985]
[1768413695201,3.95062086,145.92,145.88,0.65579985]
[1768413695702,10.80383865,145.92,145.88,0.65579985]
[1768413696286,7.39388696,145.93,145.88,0.65579985]
[1768413696490,11.34450782,145.93,145.88,0.65579985]
[1768413696800,3.95062086,145.92,145.88,0.65579985]
[1768413697294,4.48740149,145.91,145.86,0.65579985]
[1768413697481,0.54562424,145.92,145.86,0.65579985]
[1768413697799,10.80449007,145.91,145.86,0.65579985]
[1768413697992,6.85386921,145.91,145.86,0.65579985]
[1768413698200,10.90349007,145.91,145.86,0.65579985]
[1768413700198,3.95062086,145.9,145.86,0.65579985]
[1768413700791,4.05404244,145.89,145.84,0.65579985]
[1768413701287,3.95062086,145.89,145.84,0.65579985]
[1768413701998,10.80535682,145.89,145.84,0.65579985]
[1768413702203,10.80535682,145.89,145.85,0.65579985]
[1768413702400,6.85473596,145.89,145.85,0.65579985]
[1768413702601,16.45062086,145.91,145.86,0.65579985]
[1768413702805,12.5,145.91,145.86,0.65579985]
[1768413703209,12.5,145.93,145.88,0.65579985]
[1768413703399,3.95062086,145.92,145.88,0.65579985]
[1768413703710,3.95062086,145.91,145.88,0.65579985]
[1768413703881,4.49177885,145.92,145.88,0.65579985]
[1768413704082,23.30340512,145.93,145.88,0.65579985]
[1768413704693,10.80340512,145.93,145.88,0.65579985]
[1768413705582,10.80340512,145.93,145.88,7.5106632]
[1768413705783,6.85278426,145.93,145.89,0.65579985]
[1768413707412,11.34856356,145.94,145.89,7.51022206]
[1768413707912,11.34856356,145.94,145.9,0.65579985]
[1768413709007,7.3979427,145.94,145.9,0.65579985]
[1768413709206,11.34856356,145.94,145.9,0.65579985]
[1768413710119,12.5,145.95,145.91,0.65579985]
[1768413710616,16.45062086,145.95,145.91,0.65579985]
[1768413710797,12.5,145.95,145.91,0.65579985]
[1768413710997,6.85147708,145.96,145.91,0.65579985]
[1768413711314,3.95062086,145.95,145.91,0.65579985]
[1768413712392,6.85078695,145.97,145.92,0.66630121]
[1768413712592,3.95062086,145.98,145.93,0.66630121]
[1768413713031,16.45062086,145.99,145.94,0.66630121]
[1768413713314,3.95062086,145.98,145.94,0.66630121]
[1768413713713,19.34988599,145.99,145.94,0.66630121]
[1768413713891,19.34988599,145.99,145.95,0.66630121]
[1768413714715,0.2,146.02,145.96,0.66630121]
[1768413714895,3.95062086,146.01,145.96,0.66630121]
[1768413715513,12.799,146.02,145.96,0.66630121]
[1768413715695,3.95062086,146.01,145.96,0.66630121]
[1768413715896,10.7995821,146.01,145.96,0.66630121]
[1768413716418,10.7995821,146.01,145.97,0.66630121]
[1768413716719,10.7995821,146.01,145.97,0.63974785]
[1768413717514,6.84896124,146.01,145.97,0.63974785]
[1768413717713,10.7995821,146.01,145.97,0.63974785]
[1768413718405,6.9526457,146.01,145.97,0.63974785]
[1768413718612,3.95062086,146.0,145.97,0.63974785]
[1768413718903,6.9526457,146.01,145.97,0.63974785]
[1768413719099,10.90326656,146.01,145.97,0.63974785]
[1768413720126,24.07476062,146.01,145.97,0.63974785]
[1768413720301,10.90868079,145.99,145.93,0.66630121]
[1768413720619,3.95062086,145.95,145.91,0.66630121]
[1768413720824,13.053808,145.96,145.91,0.66630121]
[1768413721127,16.45062086,145.96,145.91,0.66630121]
[1768413721322,3.95062086,145.95,145.91,0.66630121]
[1768413721510,13.06744582,145.96,145.91,0.66630121]
[1768413721715,17.01806668,145.96,145.91,0.66630121]
[1768413722225,3.95062086,145.95,145.91,0.66630121]
[1768413722619,23.86968828,145.96,145.91,0.66630121]
[1768413723227,19.3516216,145.96,145.92,0.66630121]
[1768413724824,23.30224246,145.96,145.92,0.66630121]
[1768413727019,19.3516216,145.96,145.92,0.66630121]
[1768413728139,19.3516216,145.96,145.93,0.66630121]
[1768413728316,19.3516216,145.96,145.93,0.60630121]
[1768413728822,23.30224246,145.96,145.93,0.60630121]
[1768413729217,4.1177085,145.94,145.88,12.5]
[1768413729419,3.95062086,145.93,145.87,17.13805415]
[1768413729747,4.50617564,145.91,145.8,61.5]
[1768413729944,13.1321776,145.93,145.85,3.95062086]
[1768413730121,13.1321776,145.93,145.86,3.95062086]
[1768413730327,6.85353985,145.91,145.87,0.66630121]
[1768413731037,6.85323406,145.92,145.87,0.66630121]
[1768413731525,6.85323406,145.92,145.88,0.66630121]
[1768413732533,19.35272781,145.93,145.88,0.66630121]
[1768413732738,12.5,145.93,145.91,0.66630121]
[1768413733041,0.6321776,145.97,145.91,3.95062086]
[1768413733219,0.6321776,145.97,145.88,10.8054684]
[1768413733415,0.6321776,145.97,145.91,3.95062086]
[1768413733617,6.85072275,145.97,145.92,3.95062086]
[1768413735030,6.85072275,145.97,145.93,0.66630121]
[1768413737441,6.85039381,145.98,145.94,0.66630121]
[1768413737947,21.27210557,146.02,145.97,0.66630121]
[1768413738162,12.5,146.01,145.97,3.95062086]
[1768413738340,12.5,146.01,145.96,3.95062086]
[1768413738842,12.5,146.01,145.93,6.85251095]
[1768413739038,19.34884596,146.01,145.96,3.95062086]
[1768413739227,19.34884596,146.01,145.97,3.95062086]
[1768413739433,19.34884596,146.01,145.95,6.85141153]
[1768413739434,19.34884596,146.01,145.96,10.80175411]
[1768413739632,19.34884596,146.01,145.97,3.95062086]
[1768413739951,6.84884596,146.01,145.96,10.80175411]
[1768413740152,0.2,146.02,145.99,0.66630121]
[1768413740333,4.85637313,146.02,145.97,0.71808029]
[1768413740538,4.09558193,146.01,145.97,0.71808029]
[1768413741239,10.9447257,146.01,145.97,0.71808029]
[1768413741633,6.99410484,146.01,145.97,0.71808029]
[1768413743758,6.98875014,146.01,145.96,0.68656961]
[1768413744058,22.01016746,146.01,145.96,0.68656961]
[1768413744233,19.48875014,146.01,145.96,0.68656961]
[1768413744854,19.48875014,146.01,145.96,3.20798693]
[1768413745048,7.55504579,146.0,145.96,3.20798693]
[1768413745353,6.84960028,146.0,145.96,3.20798693]
[1768413745851,6.84960028,146.0,145.97,0.68656961]
[1768413746855,19.34895972,146.01,145.98,0.68656961]
[1768413747057,19.34895972,146.01,145.99,0.68656961]
[1768413747236,19.34895972,146.01,145.98,0.68656961]
[1768413748655,19.34895972,146.01,145.98,3.20798693]
[1768413748854,12.5,146.01,145.99,0.68656961]
[1768413749552,7.04858186,146.02,145.99,0.68656961]
[1768413749553,7.04858186,146.02,145.99,3.20798693]
[1768413750163,7.04858186,146.02,145.99,0.68656961]
[1768413751463,7.04858186,146.02,145.99,3.20798693]
[1768413751760,0.2,146.03,146.02,0.68656961]
[1768413752454,0.2,146.04,146.03,0.68656961]
[1768413752653,12.7,146.07,146.04,0.68656961]
[1768413753761,0.2,146.07,146.04,0.68656961]
[1768413754061,0.2,146.07,146.05,0.68656961]
[1768413756452,6.84566485,146.08,146.06,0.68656961]
[1768413756850,7.04526601,146.09,146.06,0.68656961]
[1768413757659,0.2,146.09,146.07,0.68656961]
[1768413757867,0.2,146.11,146.09,0.68656961]
[1768413758238,0.2,146.11,146.1,0.68656961]
[1768413759045,6.84384426,146.12,146.09,0.68656961]
[1768413759765,7.75452129,146.13,146.09,3.20798693]
[1768413759967,0.2,146.13,146.1,3.20798693]
[1768413760149,0.2,146.13,146.12,0.68656961]
[1768413760349,0.2,146.15,146.12,0.68656961]
[1768413760555,0.2,146.15,146.13,0.68656961]
[1768413760871,0.2,146.15,146.13,3.20798693]
[1768413761063,0.2,146.16,146.13,3.20798693]
[1768413761968,0.71116106,146.19,146.14,3.20798693]
[1768413762469,0.71116106,146.19,146.15,0.68656961]
[1768413762671,0.71116106,146.19,146.15,0.62656961]
[1768413763186,0.71116106,146.19,146.15,3.14798693]
[1768413763566,0.71116106,146.19,146.15,0.62656961]
[1768413764778,13.41116106,146.21,146.18,2.52141732]
[1768413765071,20.25080393,146.21,146.18,2.52141732]
[1768413765266,20.25080393,146.21,146.17,0.68656961]
[1768413765473,20.25080393,146.21,146.18,2.52141732]
[1768413765856,0.2,146.21,146.19,2.52141732]
[1768413766056,0.2,146.21,146.17,7.52790951]
[1768413766264,0.2,146.21,146.19,2.52141732]
[1768413766462,7.03955077,146.21,146.18,2.52141732]
[1768413767376,7.75071183,146.21,146.18,2.52141732]
[1768413767774,0.71116106,146.2,146.14,6.84269317]
[1768413767976,0.71116106,146.18,146.12,0.68656961]
[1768413768166,0.71116106,146.17,146.13,2.52141732]
[1768413768362,0.71116106,146.17,146.14,2.52141732]
[1768413768568,0.71116106,146.17,146.13,3.20798693]
[1768413768962,0.71116106,146.17,146.1,6.8446089]
[1768413769170,0.71116106,146.14,146.1,2.52141732]
[1768413769368,0.71116106,146.14,146.11,2.52141732]
[1768413770063,0.71116106,146.14,146.1,2.52141732]
[1768413770276,0.71116106,146.14,146.09,2.52141732]
[1768413770779,0.70093773,146.13,146.09,2.52141732]
[1768413771282,7.5442323,146.13,146.08,6.42150126]
[1768413771864,7.5442323,146.13,146.07,7.53221173]
[1768413772171,13.96573356,146.13,146.07,13.95371299]
[1768413772481,0.70093773,146.12,146.07,13.95371299]
[1768413772662,7.54479713,146.12,146.07,13.95371299]
[1768413772862,7.54479713,146.12,146.07,7.10807087]
[1768413773778,6.84335557,146.13,146.08,7.08197108]
[1768413773971,13.18093773,146.14,146.09,7.08197108]
[1768413774285,0.70093773,146.13,146.08,7.08197108]
[1768413774680,0.70093773,146.13,146.09,6.42150126]
[1768413774880,7.54427014,146.13,146.09,6.42150126]
[1768413775476,0.70093773,146.13,146.09,7.08197108]
[1768413776788,0.70093773,146.13,146.1,6.84462696]
[1768413777481,12.48,146.14,146.1,6.84462696]
[1768413777683,12.48,146.14,146.1,13.26612822]
[1768413777989,13.18093773,146.14,146.1,13.26612822]
[1768413778283,0.70093773,146.14,146.1,13.26612822]
[1768413778882,0.70093773,146.14,146.1,6.42150126]
[1768413779689,0.70093773,146.13,146.09,13.92688087]
[1768413780582,0.70093773,146.13,146.06,17.11574172]
[1768413780583,0.70093773,146.12,146.06,17.11574172]
[1768413780784,6.84284066,146.14,146.03,34.23953361]
[1768413780785,0.70093773,146.09,146.03,0.66046982]
[1768413780991,0.70093773,146.14,146.09,0.66046982]
[1768413781165,0.70093773,146.14,146.11,6.42150126]
[1768413781492,0.70093773,146.15,146.06,12.48]
[1768413781699,0.70093773,146.15,146.12,6.42150126]
[1768413781987,0.70093773,146.19,146.1,18.90150126]
[1768413782200,0.70093773,146.19,146.14,6.42150126]
[1768413782373,0.70093773,146.18,146.12,6.42150126]
[1768413782569,0.70093773,146.18,146.13,6.42150126]
[1768413782894,7.54199347,146.18,146.12,6.84323749]
[1768413783106,7.54199347,146.18,146.1,36.64002736]
[1768413783107,0.70093773,146.16,146.1,36.64002736]
[1768413783297,0.70093773,146.15,146.09,6.42150126]
[1768413783499,0.70093773,146.13,146.07,6.84584406]
[1768413783680,0.70093773,146.12,146.07,6.42150126]
[1768413783998,0.70093773,146.12,146.07,13.26750813]
[1768413784189,0.70093773,146.12,146.07,6.84600687]
[1768413784391,0.70093773,146.12,146.07,13.26750813]
[1768413784804,0.70093773,146.12,146.08,6.42150126]
[1768413785501,7.54467931,146.12,146.08,6.42150126]
[1768413786217,0.70093773,146.12,146.08,13.26704132]
[1768413786712,0.70093773,146.13,146.09,6.42150126]
[1768413787707,7.54416431,146.13,146.09,6.42150126]
[1768413788484,0.70093773,146.15,146.11,6.42150126]
[1768413788683,0.70093773,146.15,146.11,7.04932366]
[1768413789086,0.70093773,146.17,146.12,7.04932366]
[1768413789700,7.54237528,146.17,146.12,6.98932366]
[1768413789877,0.70093773,146.16,146.12,13.83282332]
[1768413790279,7.54191995,146.18,146.13,6.42150126]
[1768413790494,0.70093773,146.17,146.13,6.42150126]
[1768413790687,0.70093773,146.17,146.1,0.6278224]
[1768413790900,0.70093773,146.16,146.11,6.42150126]
[1768413791288,0.70093773,146.16,146.11,2.51636329]
[1768413791684,0.70093773,146.15,146.1,2.51636329]
[1768413791885,0.70093773,146.13,146.09,2.51636329]
[1768413792115,0.70093773,146.13,146.07,6.8458641]
[1768413792311,0.70093773,146.13,146.07,9.36222739]
[1768413792626,0.70093773,146.13,146.08,9.36187394]
[1768413792909,0.70093773,146.13,146.09,2.51636329]
[1768413793297,0.70093773,146.13,146.09,6.42075049]
[1768413794090,0.70093773,146.13,146.02,68.76114331]
[1768413794091,0.70093773,146.09,145.93,0.2]
[1768413794391,0.70093773,146.01,145.93,0.2]
[1768413794604,0.70093773,146.0,145.93,6.62075049]
[1768413794815,0.70093773,145.99,145.93,6.62075049]
[1768413794986,0.70093773,145.98,145.93,0.2]
[1768413795690,0.70093773,145.97,145.93,0.2]
[1768413796406,7.55169904,145.97,145.93,0.2]
[1768413796602,0.70093773,145.96,145.93,0.2]
[1768413798225,7.55216443,145.96,145.93,0.2]
[1768413799584,0.70093773,145.96,145.93,0.2]
[1768413801013,7.55220593,145.96,145.93,0.2]
[1768413801226,0.6685065,145.95,145.93,0.2]
[1768413803796,0.6685065,145.95,145.93,0.14]
[1768413804692,13.1485065,145.97,145.93,0.7678224]
[1768413805614,19.99924834,145.97,145.93,0.7678224]
[1768413805815,30.45629865,145.97,145.93,0.14]
[1768413806301,10.45705031,145.96,145.93,0.14]
[1768413806496,11.12555681,145.95,145.93,0.14]
[1768413806699,6.85184575,145.95,145.9,0.2]
[1768413806903,11.12555681,145.94,145.9,0.2]
[1768413807111,0.6685065,145.94,145.9,0.2]
[1768413807311,11.12555681,145.94,145.9,0.2]
[1768413807911,0.6685065,145.94,145.9,0.2]
[1768413808118,17.30889606,145.95,145.9,7.68175437]
[1768413808295,7.52035225,145.95,145.9,7.68175437]
[1768413808618,6.85184575,145.95,145.91,0.6278224]
[1768413809003,0.6685065,145.96,145.91,17.93802482]
[1768413809317,20.0195601,145.97,145.92,0.6278224]
[1768413809529,20.0195601,145.97,145.92,11.08487271]
[1768413810017,11.12555681,145.96,145.91,0.6278224]
[1768413810400,0.6685065,145.95,145.91,0.6278224]
[1768413811089,7.52018192,145.95,145.9,0.2]
[1768413811300,7.52018192,145.95,145.9,0.8278224]
[1768413811795,0.6685065,145.95,145.91,0.6278224]
[1768413812220,7.52023395,145.95,145.91,0.6278224]
[1768413813003,7.51959209,145.97,145.91,17.93830729]
[1768413813204,20.01959209,145.97,145.92,10.45705031]
[1768413813501,17.12464976,145.99,145.91,7.48125698]
[1768413813502,7.51867601,145.99,145.95,10.45705031]
[1768413813712,7.51843269,145.99,145.95,11.08487271]
[1768413813895,7.51843269,145.99,145.95,0.6278224]
[1768413814100,0.6685065,145.97,145.92,11.08487271]
[1768413815522,17.9763109,145.97,145.92,0.6278224]
[1768413815737,17.9763109,145.97,145.92,7.48086477]
[1768413816101,11.12555681,145.97,145.92,7.48086477]
[1768413816303,0.6685065,145.96,145.92,0.6278224]
[1768413816522,0.6685065,145.95,145.9,7.68164842]
[1768413816703,11.12555681,145.95,145.9,7.68164842]
[1768413817825,0.6685065,145.95,145.9,18.13869873]
[1768413819621,0.6685065,145.99,145.94,0.6278224]
[1768413819824,7.51837247,145.99,145.94,0.6278224]
[1768413820015,0.6685065,145.99,145.94,11.08487271]
[1768413820417,0.6685065,145.99,145.96,10.45705031]
[1768413820618,19.34964916,146.0,145.96,10.45705031]
[1768413820825,0.6685065,146.01,145.98,10.45705031]
[1768413821019,20.01658285,146.03,145.99,10.45705031]
[1768413821202,0.6685065,146.02,145.98,10.45705031]
[1768413821607,0.6685065,146.02,145.99,10.45705031]
[1768413822422,7.51700015,146.02,145.99,10.45705031]
[1768413822627,0.6685065,146.01,145.98,10.45705031]
[1768413822837,0.6685065,146.01,145.97,10.45705031]
[1768413823907,7.51757231,146.01,145.97,10.45705031]
[1768413824914,0.6685065,146.0,145.93,30.2587799]
[1768413825227,0.6685065,145.99,145.94,10.45705031]
[1768413825414,13.1685065,146.0,145.96,10.45705031]
[1768413825621,0.6685065,146.0,145.96,10.45705031]
[1768413825824,0.6685065,146.0,145.97,10.45705031]
[1768413826209,0.6685065,146.0,145.98,10.45705031]
[1768413826617,0.6685065,146.02,145.99,10.45705031]
[1768413826832,7.51628949,146.04,146.0,10.45705031]
[1768413827815,0.6685065,146.04,146.0,10.45705031]
[1768413828138,7.51600247,146.04,146.0,10.45705031]
[1768413834136,7.51600247,146.04,145.99,0.6278224]
[1768413834432,7.51600247,146.04,146.0,10.45705031]
[1768413836033,6.84707069,146.05,146.01,11.08487271]
[1768413836416,7.52098685,146.05,146.01,11.08487271]
[1768413836915,12.5,146.06,146.02,11.08487271]
[1768413837115,12.5,146.06,146.03,10.45705031]
[1768413837517,0.67391616,146.07,146.03,0.6278224]
[1768413837716,0.67391616,146.07,146.03,11.08487271]
[1768413838143,0.67391616,146.07,146.03,17.9326914]
[1768413838443,0.67391616,146.06,146.02,10.45705031]
[1768413838621,0.67391616,146.06,146.02,11.08487271]
[1768413838936,0.67391616,146.06,146.03,10.45705031]
[1768413839327,6.84647574,146.07,146.03,10.45705031]
[1768413839527,0.67391616,146.07,146.03,10.45705031]
[1768413840335,0.67391616,146.07,146.03,11.08487271]
[1768413840730,7.52011114,146.07,146.04,10.45705031]
[1768413840931,13.17391616,146.09,146.05,10.45705031]
[1768413842637,20.01924931,146.09,146.05,10.45705031]
[1768413843259,20.01924931,146.09,146.04,0.6278224]
[1768413843260,0.67391616,146.08,146.04,11.08487271]
[1768413843427,0.67391616,146.08,146.04,10.45705031]
[1768413843628,11.13096647,146.07,145.99,0.6278224]
[1768413843834,0.67391616,146.05,146.0,10.45705031]
[1768413844035,0.67391616,146.05,146.01,10.45705031]
[1768413844644,0.67391616,146.05,146.0,7.4770869]
[1768413844844,0.67391616,146.05,146.0,11.08487271]
[1768413845154,0.67391616,146.03,145.98,0.6278224]
[1768413845339,11.13096647,146.02,145.96,0.6278224]
[1768413845531,0.67391616,146.01,145.96,0.6278224]
[1768413845718,0.67391616,146.01,145.96,7.47898369]
[1768413845913,0.67391616,146.01,145.96,17.936034]